bitfinex/quotes_ETHUSD_20260130
["timestamp","ask_amount","ask_price","bid_price","bid_amount"]
[1769794621003,3.5840367,2724.7,2722.5,0.184]
[1769794621244,18.17091975,2724.9,2723.1,0.1848]
[1769794621451,0.91711705,2726.0,2723.1,0.1848]
[1769794621662,6.90012185,2726.5,2723.4,0.37057756]
[1769794621663,13.81471122,2725.9,2723.4,0.37057756]
[1769794621967,13.81471122,2725.9,2723.2,0.2335703]
[1769794621968,13.81471122,2725.9,2723.9,0.47297756]
[1769794622115,13.81471122,2725.9,2722.9,0.37057756]
[1769794622317,13.81471122,2725.5,2723.3,0.1024]
[1769794622551,13.81471122,2725.5,2723.5,0.37057756]
[1769794622753,13.81471122,2725.5,2723.6,0.1024]
[1769794622926,1.38147112,2725.8,2723.9,0.37057756]
[1769794623129,16.87299691,2726.8,2724.2,0.37057756]
[1769794623130,13.81471122,2726.5,2724.2,0.37057756]
[1769794623326,13.81471122,2726.5,2723.6,0.2335703]
[1769794623327,13.81471122,2726.5,2724.4,0.1024]
[1769794624265,13.81471122,2726.5,2723.8,0.1024]
[1769794624562,13.81471122,2726.3,2723.9,0.1024]
[1769794625849,13.81471122,2726.1,2723.7,0.91784937]
[1769794626027,13.81471122,2726.1,2723.8,0.45893257]
[1769794626347,13.81471122,2725.9,2723.9,0.91780168]
[1769794626552,13.81471122,2725.9,2723.8,1.37674804]
[1769794627115,13.81471122,2725.9,2723.9,0.1024]
[1769794627418,13.81471122,2725.7,2723.9,0.1024]
[1769794627814,13.81471122,2725.7,2723.8,1.37674804]
[1769794628431,14.73193077,2725.7,2723.8,1.37674804]
[1769794629840,13.81471122,2725.7,2723.9,0.1024]
[1769794630332,13.81471122,2725.7,2724.1,0.1024]
[1769794630730,16.11337823,2725.7,2724.0,0.91776798]
[1769794631335,1.38147112,2725.7,2724.1,0.1024]
[1769794631632,16.87299691,2726.8,2724.4,0.37057756]
[1769794631633,13.81471122,2726.7,2724.4,0.37057756]
[1769794631952,13.81471122,2726.7,2724.9,0.1024]
[1769794632438,13.81471122,2726.7,2725.1,0.1024]
[1769794632752,0.001,2726.1,2725.1,0.1024]
[1769794633252,13.81471122,2726.0,2724.0,0.002]
[1769794633557,13.81471122,2726.0,2724.9,0.91745256]
[1769794634124,0.001,2726.1,2724.9,0.91745256]
[1769794634530,16.87299691,2726.8,2724.9,0.1024]
[1769794634832,13.81521122,2726.7,2724.9,0.1024]
[1769794635036,13.81521122,2726.7,2725.1,0.1024]
[1769794635359,13.81521122,2726.7,2725.0,0.37723916]
[1769794635545,13.81521122,2726.7,2724.8,0.1024]
[1769794636482,13.81521122,2726.5,2724.6,3.66985944]
[1769794636630,13.81521122,2726.5,2724.5,0.1024]
[1769794637157,13.81521122,2726.5,2724.4,0.91763324]
[1769794637682,16.87299691,2726.8,2724.7,0.36957756]
[1769794637837,30.68820813,2726.8,2724.8,0.82764531]
[1769794638026,30.68820813,2726.8,2724.8,4.70264531]
[1769794638228,30.68820813,2726.8,2725.0,0.1024]
[1769794638423,30.68820813,2726.8,2725.1,0.91739752]
[1769794638638,30.68820813,2726.8,2725.2,0.1024]
[1769794638835,13.62958397,2727.3,2725.2,0.1024]
[1769794639253,16.00087132,2727.3,2725.2,0.1024]
[1769794639457,15.08420524,2727.3,2725.2,0.1024]
[1769794639656,13.62958397,2727.3,2725.2,0.1024]
[1769794639956,14.54625323,2727.3,2725.2,0.1024]
[1769794640462,13.62958397,2727.3,2725.2,0.1024]
[1769794640835,14.54625235,2727.3,2725.4,0.1024]
[1769794641035,16.36751686,2727.3,2725.4,0.1024]
[1769794641444,13.62958397,2727.3,2725.4,0.1024]
[1769794642462,14.54625463,2727.3,2725.3,0.77410133]
[1769794642830,14.54625463,2727.3,2725.0,3.6693208]
[1769794643032,14.54625463,2727.3,2724.9,0.91746486]
[1769794643261,13.72239759,2727.1,2725.0,0.53125696]
[1769794644489,13.72239759,2726.9,2725.0,0.53125696]
[1769794644771,13.72239759,2726.9,2724.8,1.64273647]
[1769794644967,13.72239759,2726.7,2724.8,1.64273647]
[1769794646168,13.72239759,2726.7,2725.2,0.002]
[1769794646843,13.72239759,2726.5,2725.2,0.002]
[1769794648342,14.63921315,2726.9,2725.2,0.002]
[1769794648547,13.72239759,2726.9,2725.2,0.002]
[1769794649160,13.72239759,2728.5,2725.9,0.55520481]
[1769794649359,13.72239759,2728.5,2726.0,0.1024]
[1769794649563,13.72239759,2728.5,2726.0,2.47146168]
[1769794649761,13.72239759,2728.5,2726.2,0.1024]
[1769794650942,13.72239759,2728.5,2726.3,0.91699372]
[1769794651135,13.72239759,2728.5,2726.5,0.1024]
[1769794652287,14.63866066,2728.5,2726.5,0.1024]
[1769794652594,13.72239759,2728.5,2726.5,0.1024]
[1769794652750,14.63865689,2728.5,2726.5,0.1024]
[1769794652951,14.63865689,2728.5,2726.6,0.91689283]
[1769794653163,13.72239759,2728.3,2726.7,0.45844642]
[1769794655081,13.72239759,2728.3,2726.8,0.91682558]
[1769794656596,14.63871916,2728.3,2726.4,0.46873686]
[1769794656756,14.63871916,2728.3,2725.2,3.6713208]
[1769794656757,0.0008,2726.5,2725.2,3.6713208]
[1769794656959,13.55821407,2726.4,2725.2,0.002]
[1769794660779,13.55821407,2726.4,2725.7,0.002]
[1769794661198,13.0735787,2726.9,2725.7,0.002]
[1769794664109,13.99038821,2726.9,2725.7,0.002]
[1769794664475,13.0735787,2726.9,2725.7,0.002]
[1769794665881,13.99037786,2726.9,2725.7,0.002]
[1769794666200,13.99037808,2726.9,2725.7,0.002]
[1769794666375,15.38941589,2726.9,2725.7,0.002]
[1769794667507,13.0735787,2726.9,2725.7,0.002]
[1769794668191,13.99037522,2726.9,2725.7,0.002]
[1769794668598,13.99037522,2726.9,2725.2,0.002]
[1769794670008,13.16499233,2726.7,2725.2,0.002]
[1769794670232,13.16499233,2726.5,2725.2,0.002]
[1769794670388,13.16499233,2726.3,2725.2,0.36933208]
[1769794670584,13.16499233,2726.1,2725.2,0.36933208]
[1769794670824,0.11481646,2726.0,2725.2,0.36933208]
[1769794670992,13.16499233,2726.1,2725.2,0.36933208]
[1769794671301,13.27981279,2726.0,2725.2,0.36933208]
[1769794671505,13.16499233,2726.0,2725.2,0.36933208]
[1769794672176,13.16499233,2726.0,2725.3,0.9173302]
[1769794672372,13.16499233,2726.0,2725.4,0.49559831]
[1769794673812,13.27982128,2725.9,2725.4,0.49559831]
[1769794674111,13.27982128,2725.9,2725.2,1.28667991]
[1769794674112,12.91719317,2725.7,2724.4,0.91762331]
[1769794674313,12.91519317,2725.5,2724.0,0.002]
[1769794674520,12.91519317,2725.3,2724.0,0.002]
[1769794674707,12.91519317,2725.1,2724.0,0.002]
[1769794674878,0.11482895,2725.0,2724.0,0.002]
[1769794675084,12.91519317,2725.1,2724.0,0.002]
[1769794675278,12.91519317,2725.6,2724.1,0.002]
[1769794675484,13.03004716,2725.5,2724.1,0.002]
[1769794675707,13.03004716,2725.4,2724.1,0.002]
[1769794675909,12.91519317,2725.2,2724.1,0.002]
[1769794676203,0.11485399,2725.1,2724.1,0.002]
[1769794676404,13.83205237,2726.7,2724.1,0.002]
[1769794676608,12.91519317,2726.3,2724.1,0.002]
[1769794676807,12.91519317,2726.1,2724.1,0.002]
[1769794677017,12.91519317,2725.9,2724.1,0.002]
[1769794677313,12.91519317,2725.7,2724.1,0.002]
[1769794677482,12.91519317,2725.5,2724.1,0.002]
[1769794677685,13.03004726,2725.4,2724.1,0.002]
[1769794677907,13.03004726,2725.3,2724.1,0.002]
[1769794678106,0.11485409,2725.2,2724.1,0.002]
[1769794678301,12.91519317,2725.3,2724.1,0.002]
[1769794678501,0.11485832,2725.2,2724.1,0.002]
[1769794678714,12.91519317,2725.3,2724.1,0.002]
[1769794678904,0.11485877,2725.2,2724.1,0.002]
[1769794679103,12.91519317,2725.3,2724.1,0.002]
[1769794679307,12.91519317,2725.1,2724.1,0.002]
[1769794679819,12.91519317,2725.1,2724.0,0.002]
[1769794679984,12.91419317,2724.9,2723.5,3.6708111]
[1769794680185,12.91379317,2724.5,2722.1,2.17241365]
[1769794680385,6.35870953,2725.2,2722.4,0.1024]
[1769794680386,12.91379317,2724.3,2722.4,0.1024]
[1769794680599,12.91379317,2724.3,2722.4,2.27481365]
[1769794681320,1.41999453,2725.3,2723.2,0.1024]
[1769794681618,12.74432437,2725.3,2723.3,0.1024]
[1769794682424,12.74432437,2725.3,2723.4,0.91797018]
[1769794682425,13.66165812,2725.3,2723.4,0.91797018]
[1769794683322,12.74432437,2725.3,2723.5,13.17771906]
[1769794683631,12.74595162,2725.8,2723.5,13.17771906]
[1769794683791,12.74595162,2725.8,2723.7,0.1024]
[1769794684426,12.74595162,2725.8,2723.9,0.1024]
[1769794684721,0.37701247,2726.4,2723.9,0.1024]
[1769794684722,12.74595162,2726.3,2723.9,13.17771906]
[1769794685093,12.74595162,2726.3,2724.2,0.1024]
[1769794685290,3.66694342,2727.1,2724.2,0.1024]
[1769794685291,12.74595162,2726.8,2724.6,13.07531906]
[1769794685602,12.74595162,2727.3,2725.3,13.07531906]
[1769794685804,12.74595162,2727.3,2725.4,0.1024]
[1769794686194,0.65743108,2728.0,2725.7,13.07531906]
[1769794686388,0.65743108,2728.0,2725.6,0.1024]
[1769794686389,0.001,2728.1,2726.3,13.94464285]
[1769794686615,0.001,2728.1,2726.5,13.02764913]
[1769794686922,0.9160907,2729.0,2726.6,13.13004913]
[1769794687110,14.17679473,2729.0,2726.6,13.13004913]
[1769794687694,14.17679473,2729.0,2726.3,0.91699372]
[1769794687894,13.26070403,2728.8,2726.5,0.1024]
[1769794688202,13.26070403,2728.6,2726.4,0.4476257]
[1769794688727,13.26070403,2728.4,2726.5,0.91692646]
[1769794689120,13.26070403,2728.2,2726.4,0.91695971]
[1769794690855,0.91638869,2728.1,2726.3,3.66797379]
[1769794691025,14.17685765,2728.8,2726.4,13.76123055]
[1769794691955,0.1024,2729.1,2726.4,13.76123055]
[1769794692125,14.17672337,2729.2,2726.9,13.13004913]
[1769794692320,14.17672337,2729.2,2726.4,0.73358142]
[1769794692321,1.78408007,2729.1,2727.1,13.13004913]
[1769794692742,2.70014539,2729.1,2727.2,0.91669111]
[1769794692956,2.70014539,2729.1,2727.2,13.94434024]
[1769794693149,0.91606532,2729.1,2727.2,13.94434024]
[1769794693349,14.17676935,2729.1,2727.2,0.91669111]
[1769794693533,0.11472443,2729.0,2727.2,0.91669111]
[1769794693728,0.11472443,2728.9,2727.2,13.94434024]
[1769794693929,0.91600585,2729.3,2727.3,14.34542104]
[1769794694124,0.11470814,2729.2,2727.3,14.34542104]
[1769794694451,0.001,2729.4,2727.5,13.02764913]
[1769794694754,0.001,2729.4,2727.7,0.91652307]
[1769794696948,0.001,2729.4,2727.6,3.66609231]
[1769794697159,0.001,2729.4,2727.7,1.31777191]
[1769794698332,0.11471623,2729.3,2727.5,0.91658446]
[1769794698684,0.001,2729.4,2727.5,0.91658446]
[1769794698685,13.37542026,2729.2,2727.5,0.91658446]
[1769794698962,14.1767905,2729.0,2726.7,1.0192592]
[1769794699260,14.1767905,2729.0,2726.7,13.94450833]
[1769794699455,13.26070403,2728.8,2726.8,1.76119997]
[1769794700125,13.26070403,2728.8,2726.8,0.1024]
[1769794700529,0.11473963,2728.7,2726.7,0.9168592]
[1769794700758,13.37544366,2728.6,2726.7,0.9168592]
[1769794700953,14.17699196,2728.4,2726.2,13.13004913]
[1769794701158,1.78421437,2728.3,2726.4,0.1024]
[1769794701462,15.0449184,2728.3,2726.3,1.40471101]
[1769794701651,15.0449184,2728.3,2726.2,0.1024]
[1769794701855,13.26070403,2728.1,2726.2,0.1024]
[1769794702163,13.26070403,2728.1,2726.1,0.917061]
[1769794702164,13.26070403,2727.9,2726.1,0.917061]
[1769794703037,13.26070403,2727.9,2725.8,3.66824401]
[1769794703038,14.1771935,2727.8,2725.8,3.66824401]
[1769794704080,14.1771935,2727.8,2725.7,0.1024]
[1769794704250,13.26070403,2727.6,2725.7,0.1024]
[1769794704965,13.26070403,2727.6,2725.6,0.91722923]
[1769794705170,13.26070403,2727.4,2725.5,3.66891693]
[1769794705934,13.26070403,2727.2,2725.3,0.91729654]
[1769794706139,13.26070403,2727.0,2725.3,0.91729654]
[1769794706353,14.59825455,2726.9,2725.5,0.45864544]
[1769794707173,13.26070403,2726.7,2725.6,0.91722923]
[1769794707384,13.26070403,2726.5,2725.1,0.91736706]
[1769794707564,13.37553197,2726.4,2725.1,0.91736706]
[1769794707868,13.37553197,2726.4,2724.3,16.69820922]
[1769794707869,13.26070403,2726.4,2724.8,3.66996924]
[1769794708073,13.26070403,2726.2,2724.9,0.36699692]
[1769794708281,13.26070403,2726.2,2724.9,1.28446077]
[1769794708441,13.26070403,2726.0,2724.6,0.002]
[1769794708642,13.26070403,2725.8,2724.6,0.002]
[1769794708843,0.11485999,2725.7,2724.6,0.002]
[1769794709062,1.3375564,2725.6,2724.7,0.91752806]
[1769794709388,0.91719558,2725.7,2724.6,0.002]
[1769794709546,14.17789961,2725.7,2724.6,0.002]
[1769794709740,13.26070403,2725.5,2724.4,0.002]
[1769794710250,13.26070403,2725.3,2723.9,0.91780168]
[1769794710469,0.11488346,2725.2,2723.9,0.91780168]
[1769794710671,13.26070403,2725.3,2724.0,0.45891278]
[1769794710977,13.37558728,2725.2,2724.0,0.45891278]
[1769794711181,13.26070403,2725.2,2724.0,0.45891278]
[1769794711379,14.17783231,2725.9,2724.1,0.91773429]
[1769794711552,13.26070403,2725.7,2724.1,0.91773429]
[1769794711748,1.81930143,2725.6,2724.2,0.50475843]
[1769794712051,0.11486888,2725.5,2724.2,0.50475843]
[1769794712378,0.11486638,2725.4,2724.8,0.002]
[1769794712565,0.11487541,2725.3,2724.2,0.50475843]
[1769794712877,13.37558284,2725.2,2723.6,3.67157891]
[1769794713077,13.26070403,2725.0,2723.5,0.91991361]
[1769794713286,14.2930477,2724.9,2723.5,0.002]
[1769794713481,14.2930477,2724.9,2723.3,0.002]
[1769794713482,13.26070403,2724.7,2723.3,0.002]
[1769794713691,0.91746486,2724.9,2723.3,0.002]
[1769794713692,13.26070403,2724.5,2723.3,0.002]
[1769794713889,0.11487881,2724.4,2723.3,0.002]
[1769794714048,0.11487881,2724.3,2723.3,0.002]
[1769794714244,13.26070403,2724.5,2723.3,0.002]
[1769794714476,13.37562642,2724.4,2723.3,0.002]
[1769794714685,1.45248503,2724.3,2723.3,0.002]
[1769794714883,13.26070403,2724.1,2722.8,0.91815905]
[1769794715271,0.91776798,2724.0,2722.3,0.9183411]
[1769794715789,14.17847201,2724.0,2722.3,0.9183411]
[1769794717591,14.17847201,2724.0,2722.0,3.67336443]
[1769794717879,1.78494136,2723.9,2722.1,13.91630311]
[1769794718083,0.91776798,2724.0,2722.1,13.91630311]
[1769794718454,14.65392705,2724.0,2722.1,13.91630311]
[1769794718652,14.65392705,2724.0,2722.1,0.73467289]
[1769794718852,14.65392705,2724.0,2721.9,3.67336443]
[1769794719661,14.65392705,2724.0,2721.7,16.85566945]
[1769794719856,14.65392705,2724.0,2721.8,13.18163022]
[1769794721885,14.65392705,2724.0,2721.9,0.91847606]
[1769794722566,13.73615907,2723.8,2721.9,0.91847606]
[1769794722883,13.73615907,2723.6,2722.0,0.45923803]
[1769794723455,1.39697294,2723.7,2721.6,0.91855257]
[1769794723456,13.73615907,2723.4,2721.6,0.91855257]
[1769794723659,13.73615907,2723.0,2721.6,0.91857619]
[1769794723883,13.73615907,2723.0,2721.7,0.91853996]
[1769794724053,13.73615907,2723.0,2721.1,3.67493908]
[1769794724054,0.91813874,2722.9,2721.1,3.67493908]
[1769794724256,13.73615907,2722.6,2721.0,0.91877986]
[1769794724454,13.73615907,2722.6,2721.1,0.45960137]
[1769794724692,13.73615907,2722.6,2721.0,0.91877986]
[1769794724861,13.73615907,2722.6,2722.2,0.002]
[1769794725068,13.73615907,2722.6,2721.0,0.91877986]
[1769794725267,13.73615907,2722.6,2722.0,0.002]
[1769794725656,13.73615907,2722.6,2721.0,0.91877986]
[1769794725860,15.10977498,2722.5,2721.0,1.74588173]
[1769794726264,0.91830737,2722.4,2721.0,1.74588173]
[1769794727159,2.29191893,2722.5,2721.0,1.74588173]
[1769794727359,14.65446209,2722.5,2721.0,1.74588173]
[1769794727692,14.65446209,2722.5,2720.9,0.002]
[1769794727693,13.73615907,2722.3,2720.9,0.002]
[1769794727872,13.73615907,2722.3,2720.9,0.92080977]
[1769794728367,0.91837484,2722.2,2720.9,0.002]
[1769794728568,13.73615907,2722.1,2720.9,0.002]
[1769794729091,0.91837484,2722.2,2720.9,0.002]
[1769794729394,3.67349937,2722.4,2720.9,0.002]
[1769794729395,3.67326356,2722.4,2720.9,0.002]
[1769794729567,17.40942263,2722.4,2720.9,0.002]
[1769794729890,13.73615907,2722.3,2720.9,0.002]
[1769794730255,0.91837484,2722.2,2720.9,0.002]
[1769794730993,0.91820619,2722.7,2720.9,0.002]
[1769794731162,16.67035279,2722.7,2720.9,1.32036302]
[1769794731475,13.73615907,2722.5,2720.9,0.002]
[1769794731674,13.73615907,2722.3,2720.9,0.002]
[1769794731877,2.93419372,2722.7,2720.9,0.002]
[1769794731878,13.73615907,2722.1,2720.9,0.002]
[1769794732077,13.73615907,2721.9,2720.6,0.002]
[1769794732319,13.73615907,2721.9,2719.9,13.18163022]
[1769794732320,13.73615907,2721.4,2719.9,0.91915064]
[1769794734393,13.73615907,2721.4,2719.6,0.002]
[1769794734394,0.91867857,2721.3,2719.6,0.002]
[1769794734593,0.91867857,2721.3,2719.6,13.18363022]
[1769794734798,0.91866793,2721.4,2719.6,13.18363022]
[1769794735104,0.91854355,2721.7,2719.6,13.18363022]
[1769794735265,0.59778373,2721.6,2719.7,14.49999324]
[1769794736673,0.91861106,2721.5,2719.8,14.10081545]
[1769794737190,0.11504001,2721.4,2719.8,14.10081545]
[1769794737495,0.91861106,2721.5,2719.8,14.10081545]
[1769794737820,0.91861106,2721.5,2720.1,0.002]
[1769794737963,1.38511954,2721.8,2720.1,13.18363022]
[1769794738168,0.91947196,2722.0,2720.3,13.18163022]
[1769794738479,0.001,2722.0,2720.3,13.18163022]
[1769794738663,0.001,2722.0,2720.5,13.18163022]
[1769794740271,0.91820619,2722.7,2720.5,13.28403022]
[1769794740471,0.91820619,2722.7,2720.7,13.18163022]
[1769794740472,0.11498912,2722.6,2720.7,13.18163022]
[1769794740679,0.91820619,2722.7,2720.9,13.18163022]
[1769794740680,0.11498912,2722.5,2720.9,13.18163022]
[1769794740880,13.73615907,2723.3,2720.9,13.18163022]
[1769794740881,0.11498912,2722.4,2720.9,13.18163022]
[1769794741103,0.91810503,2723.0,2720.9,13.18163022]
[1769794741400,0.11498727,2722.9,2720.9,13.18163022]
[1769794741620,0.11498727,2722.8,2721.1,13.18163022]
[1769794741772,0.11498727,2722.7,2721.1,13.18163022]
[1769794741965,0.11498727,2722.6,2721.1,13.18163022]
[1769794742170,0.11498727,2722.5,2721.1,13.18163022]
[1769794742367,0.11498727,2722.4,2721.0,1.31836302]
[1769794742570,0.91837484,2722.2,2720.7,16.85701981]
[1769794742772,0.11498727,2722.1,2720.7,16.85701981]
[1769794742971,0.91837484,2722.2,2720.7,16.85701981]
[1769794743201,0.11500205,2722.1,2720.8,13.18163022]
[1769794743382,0.11500205,2722.0,2720.8,13.18163022]
[1769794743700,0.11499677,2721.9,2720.9,14.8673322]
[1769794743906,0.11500611,2721.8,2720.9,1.68570198]
[1769794744131,0.11500611,2721.7,2720.7,3.67538959]
[1769794744288,0.11500611,2721.6,2720.7,3.67538959]
[1769794744481,0.11500611,2721.5,2720.7,3.67538959]
[1769794744715,3.67310841,2722.5,2720.7,3.67538959]
[1769794744999,0.84964381,2722.4,2720.8,0.55785278]
[1769794745342,13.73615907,2722.1,2720.8,0.55785278]
[1769794745473,13.73615907,2721.5,2720.1,0.002]
[1769794745818,0.11501002,2721.4,2720.6,0.91891418]
[1769794746112,0.11501002,2721.3,2720.6,0.91891418]
[1769794746298,0.11501002,2721.2,2720.7,0.45946597]
[1769794746603,0.11501002,2721.1,2720.1,0.002]
[1769794746793,0.11501002,2721.0,2720.1,0.002]
[1769794746992,0.11501002,2720.9,2720.1,0.002]
[1769794747170,0.11503731,2720.8,2720.1,0.002]
[1769794747366,0.91869974,2721.3,2720.1,0.002]
[1769794747671,0.11503986,2721.2,2720.1,0.37005769]
[1769794748005,0.11503986,2721.1,2720.1,0.37005769]
[1769794748308,0.11503986,2721.0,2720.1,0.37005769]
[1769794748484,0.11503986,2720.9,2720.1,0.37005769]
[1769794748684,0.11503986,2720.8,2720.2,0.91905006]
[1769794748889,0.11503986,2720.7,2720.3,0.4965308]
[1769794749108,0.91872828,2721.2,2720.3,0.4965308]
[1769794749314,0.11504184,2721.1,2720.3,0.4965308]
[1769794749516,3.67472654,2721.3,2720.3,0.4965308]
[1769794749517,0.11504184,2721.0,2720.3,0.4965308]
[1769794749692,0.11504184,2720.9,2720.3,0.4965308]
[1769794749894,0.91871281,2721.2,2720.3,0.4965308]
[1769794749895,0.11504184,2720.8,2720.3,0.4965308]
[1769794750121,0.11504184,2720.7,2720.1,1.28912042]
[1769794750329,0.91871281,2721.2,2720.1,1.28912042]
[1769794750330,0.11504184,2720.6,2720.1,1.28912042]
[1769794750525,0.91871281,2721.2,2720.1,1.28912042]
[1769794750826,1.03379534,2721.1,2720.1,1.28912042]
[1769794751023,0.11504555,2721.0,2720.1,0.37005769]
[1769794751201,0.11504555,2720.9,2720.1,0.92108215]
[1769794751400,0.11504555,2720.8,2720.1,0.92108215]
[1769794751720,0.11504555,2720.7,2720.1,0.92108215]
[1769794751904,0.11504555,2720.6,2720.1,0.92108215]
[1769794752103,0.91874979,2721.1,2720.1,0.002]
[1769794752104,0.11504555,2720.5,2720.1,0.002]
[1769794752306,0.11504555,2720.4,2720.1,0.92108358]
[1769794752627,0.11504555,2720.3,2720.1,0.002]
[1769794752804,0.73463379,2722.4,2720.1,0.37006025]
[1769794752805,0.91879981,2721.0,2720.1,0.37006025]
[1769794753125,0.91879981,2721.0,2720.1,0.002]
[1769794753517,14.2337226,2721.0,2720.1,0.002]
[1769794753695,14.2337226,2721.0,2719.6,0.002]
[1769794754427,14.2337226,2721.0,2719.3,0.91935424]
[1769794754428,13.31492279,2720.8,2719.3,0.91935424]
[1769794755535,0.91888117,2720.7,2719.1,3.67741698]
[1769794755738,14.23380396,2720.7,2719.1,3.67741698]
[1769794756699,0.91888117,2720.7,2719.1,3.67741698]
[1769794757901,3.67552468,2720.8,2719.1,3.67741698]
[1769794758101,0.91419216,2720.7,2719.2,0.45968388]
[1769794758536,0.91419216,2720.7,2719.2,13.29829644]
[1769794758843,16.98946593,2721.5,2719.2,13.29829644]
[1769794759207,13.31492279,2721.4,2719.2,13.29829644]
[1769794759529,13.31492279,2721.2,2719.2,13.29829644]
[1769794760541,13.31492279,2721.0,2719.3,0.91935424]
[1769794760832,1.42336689,2720.9,2719.4,1.78950677]
[1769794761729,1.42336689,2720.9,2719.4,1.79150677]
[1769794762540,0.91884739,2720.8,2719.5,0.91928663]
[1769794763043,0.91867857,2721.3,2719.5,0.91928663]
[1769794763346,3.67483311,2722.0,2719.5,0.91928663]
[1769794763347,3.67185715,2723.5,2721.1,12.83861256]
[1769794763550,13.31592279,2723.8,2721.8,3.03443157]
[1769794763551,0.36718572,2723.4,2721.8,3.03443157]
[1769794763838,14.23379186,2723.8,2722.2,0.19191187]
[1769794763839,3.67188073,2723.7,2722.2,0.19191187]
[1769794764016,16.98680352,2723.7,2722.2,0.19191187]
[1769794764227,13.31492279,2723.6,2722.2,0.19191187]
[1769794764631,13.31492279,2723.4,2722.2,1.1102642]
[1769794764958,1.42328593,2723.3,2722.2,1.1102642]
[1769794766219,14.73820872,2723.3,2721.7,0.91852768]
[1769794766539,13.31492279,2722.9,2721.5,0.91860736]
[1769794766853,14.23309525,2722.8,2720.6,13.8599275]
[1769794767052,1.79057851,2722.7,2720.7,14.210405]
[1769794768872,0.91823991,2722.6,2720.8,0.91884739]
[1769794769565,2.70880496,2722.7,2720.8,13.75745995]
[1769794769763,2.70880496,2722.7,2720.9,12.94101256]
[1769794769764,1.79057851,2722.7,2720.9,12.94101256]
[1769794769939,0.91810503,2723.0,2720.9,12.94101256]
[1769794770525,0.9180376,2723.2,2720.9,12.94101256]
[1769794770726,0.9180376,2723.2,2721.0,0.91877986]
[1769794771052,14.23296039,2723.2,2721.0,13.75739242]
[1769794771259,1.79050743,2723.1,2721.1,13.29829644]
[1769794772055,1.79050743,2723.1,2721.2,12.83861256]
[1769794772560,0.9180376,2723.2,2721.2,12.83861256]
[1769794772756,0.91793647,2723.5,2721.5,13.75722362]
[1769794773059,14.23285926,2723.5,2721.2,3.67472079]
[1769794773254,13.31492279,2723.1,2721.1,0.45968388]
[1769794773430,13.31492279,2723.1,2721.4,0.91864037]
[1769794773958,13.31492279,2722.7,2720.7,1.37179244]
[1769794774127,13.31492279,2722.5,2721.1,0.91874477]
[1769794774326,13.31492279,2722.5,2721.2,0.91870817]
[1769794774729,0.91830737,2722.4,2720.6,3.67563317]
[1769794774929,14.23323016,2722.4,2720.4,1.64895352]
[1769794775438,14.23323016,2722.4,2720.4,14.48756608]
[1769794775642,18.97956876,2722.3,2720.5,1.81634961]
[1769794775839,13.31492279,2722.2,2720.4,0.9189825]
[1769794776929,14.34451529,2722.1,2720.3,3.67593001]
[1769794777273,14.34451529,2722.1,2720.1,3.67593001]
[1769794777889,13.42610671,2721.9,2720.1,0.91908385]
[1769794778165,0.91840858,2722.1,2720.2,0.45955264]
[1769794778166,13.42610671,2721.7,2720.2,0.45955264]
[1769794778360,13.42610671,2721.7,2720.0,0.9190962]
[1769794778861,14.34468401,2721.6,2719.8,3.67647058]
[1769794779180,14.34468401,2721.6,2719.8,17.00065031]
[1769794779867,14.34468401,2721.6,2719.8,13.32417973]
[1769794780072,14.34468401,2721.6,2719.7,3.67647058]
[1769794780073,15.22800603,2721.5,2719.9,1.70006503]
[1769794780270,15.22800603,2721.5,2719.7,3.67647058]
[1769794780474,15.22800603,2721.5,2719.7,17.00065031]
[1769794780835,0.91864481,2721.4,2719.9,0.91915143]
[1769794781576,3.67406694,2721.8,2719.9,14.24333116]
[1769794784898,13.42610671,2721.5,2719.9,14.24333116]
[1769794785099,14.76871738,2721.4,2720.0,1.79199369]
[1769794785400,14.76871738,2721.4,2719.6,0.7504512]
[1769794785401,14.76871738,2721.4,2719.1,17.00377546]
[1769794785597,14.76871738,2721.4,2719.7,0.91920816]
[1769794785897,14.76871738,2721.4,2720.1,0.002]
[1769794787283,13.42610671,2721.2,2720.1,0.002]
[1769794787773,13.42610671,2721.2,2719.9,0.002]
[1769794787974,13.42610671,2721.0,2719.9,0.002]
[1769794788398,13.42610671,2721.0,2719.1,0.002]
[1769794788572,13.42610671,2721.0,2719.6,0.91923512]
[1769794788769,13.42610671,2721.0,2719.7,0.91921633]
[1769794789206,13.42610671,2721.0,2719.1,0.002]
[1769794789207,13.42610671,2720.8,2719.1,0.002]
[1769794789373,14.86059874,2720.7,2719.1,0.002]
[1769794790103,14.86059874,2720.7,2719.1,0.73790396]
[1769794790596,14.86059874,2720.7,2719.1,0.002]
[1769794791399,0.91891494,2720.6,2719.1,0.002]
[1769794794308,14.34502165,2720.6,2719.1,0.002]
[1769794799185,14.34502165,2720.6,2719.6,0.002]
[1769794799602,0.001,2720.5,2719.6,0.002]
[1769794799921,14.86070887,2720.4,2719.1,0.002]
[1769794800213,14.86070887,2720.4,2718.9,0.002]
[1769794800214,13.42610671,2720.2,2718.9,0.002]
[1769794800411,13.42610671,2719.8,2718.9,0.002]
[1769794800628,13.42610671,2719.6,2718.9,0.002]
[1769794800838,14.86070887,2720.4,2719.0,0.91945182]
[1769794801193,13.42610671,2720.4,2719.0,0.91945182]
[1769794801602,0.91901628,2720.3,2718.9,0.002]
[1769794801915,0.001,2720.5,2718.9,13.32617973]
[1769794802078,0.001,2720.5,2718.9,14.2828052]
[1769794802282,14.34606039,2720.5,2718.9,0.002]
[1769794802583,13.42610671,2720.3,2718.9,0.002]
[1769794803109,13.42610671,2720.1,2718.9,0.002]
[1769794803319,13.42610671,2719.9,2718.8,0.002]
[1769794803687,13.42610671,2719.7,2718.8,0.002]
[1769794804285,13.42610671,2719.7,2718.3,0.002]
[1769794804484,0.91918523,2719.8,2717.7,0.91988033]
[1769794804485,13.42610671,2719.3,2717.7,0.91988033]
[1769794805101,13.42610671,2719.3,2717.7,14.24406006]
[1769794805383,13.42610671,2719.3,2717.7,0.91988033]
[1769794805612,13.42610671,2719.3,2717.6,0.002]
[1769794805816,14.34549476,2719.2,2717.6,0.002]
[1769794806021,1.8023047,2719.1,2717.7,0.3681582]
[1769794806186,13.42610671,2719.2,2717.7,0.3681582]
[1769794806797,1.43452919,2719.6,2717.8,12.88990488]
[1769794807027,13.62224423,2720.1,2718.2,12.88990488]
[1769794807184,0.91904042,2720.3,2718.2,12.88990488]
[1769794807525,0.001,2720.5,2718.6,12.88990488]
[1769794807824,0.001,2720.5,2719.0,12.88990488]
[1769794809407,0.001,2720.5,2719.2,12.88990488]